bitfinex/quotes_SOLUSD_20250413
["timestamp","ask_amount","ask_price","bid_price","bid_amount"]
[1744549806412,8.7038,129.53,129.51,0.03]
[1744549808007,7.1,129.53,129.51,0.03]
[1744549810152,8.7465,129.57,129.51,0.03]
[1744549810431,0.14216157,129.56,129.51,0.03]
[1744549810635,18.79181043,129.56,129.51,0.03]
[1744549811748,26.51031043,129.56,129.51,0.03]
[1744549813742,8.7465,129.57,129.51,0.03]
[1744549814047,7.1,129.57,129.51,0.03]
[1744549815014,7.1,129.57,129.52,0.28432314]
[1744549816025,7.1,129.57,129.53,7.7202]
[1744549816619,0.14216157,129.56,129.52,7.7205]
[1744549817130,7.1,129.57,129.52,7.7205]
[1744549818448,7.1,129.57,129.52,27.0225]
[1744549828148,7.1,129.57,129.53,8.0736]
[1744549830857,7.1,129.57,129.54,7.7196]
[1744549833932,8.6193,129.6,129.54,7.7196]
[1744549834563,7.08,129.6,129.54,27.0186]
[1744549834746,7.08,129.6,129.56,0.28432314]
[1744549834943,0.0001,129.62,129.56,0.28432314]
[1744549835245,0.0001,129.62,129.55,0.28432314]
[1744549835857,0.0001,129.62,129.56,27.0144]
[1744549841359,0.0001,129.62,129.56,7.7184]
[1744549841746,0.0001,129.62,129.56,27.0144]
[1744549845268,0.0001,129.62,129.57,0.28432314]
[1744549845473,0.0001,129.62,129.58,27.0103]
[1744549846170,0.0001,129.62,129.58,7.7172]
[1744549847972,0.0001,129.62,129.57,7.7178]
[1744549849572,0.0001,129.62,129.57,27.0123]
[1744549852789,0.0001,129.62,129.58,8.1496]
[1744549854368,0.0001,129.62,129.61,26.0]
[1744549854550,0.0001,129.62,129.61,33.7154]
[1744549861687,0.0001,129.62,129.61,33.99972314]
[1744549862187,0.0001,129.62,129.61,52.649372]
[1744549865386,0.0001,129.62,129.61,134.249372]
[1744549866282,0.063,129.64,129.62,19.07613357]
[1744549866582,0.0001,129.64,129.63,26.58694886]
[1744549866784,0.0001,129.64,129.63,27.01343357]
[1744549866989,0.063,129.68,129.66,26.0]
[1744549867379,0.063,129.68,129.67,7.7118]
[1744549868991,0.063,129.68,129.64,7.7136]
[1744549871600,0.063,129.68,129.64,26.9977]
[1744549872701,0.063,129.68,129.65,18.933972]
[1744549873206,0.063,129.68,129.65,26.816772]
[1744549874401,0.063,129.68,129.66,7.7124]
[1744549875892,0.063,129.68,129.67,26.28432314]
[1744549876784,0.063,129.68,129.67,33.99612314]
[1744549877380,0.063,129.7,129.69,0.28432314]
[1744549878788,0.063,129.7,129.69,7.99492314]
[1744549879177,0.063,129.7,129.69,26.644572]
[1744549879378,0.0001,129.7,129.69,26.644572]
[1744549881015,0.0001,129.7,129.69,7.99492314]
[1744549881493,0.0001,129.7,129.69,7.7106]
[1744549881679,0.0001,129.7,129.68,7.711]
[1744549883107,0.0001,129.7,129.66,26.9924]
[1744549883891,0.0001,129.7,129.67,0.28432314]
[1744549884796,0.0001,129.7,129.69,44.64964886]
[1744549885107,0.063,129.74,129.73,44.64964886]
[1744549885402,0.0001,129.74,129.73,45.07613357]
[1744549885796,0.0001,129.75,129.74,18.64964886]
[1744549885988,0.0001,129.76,129.74,100.533972]
[1744549886897,0.0001,129.76,129.75,0.28432314]
[1744549888004,0.0001,129.76,129.75,7.99142314]
[1744549888398,0.0001,129.76,129.75,7.7071]
[1744549891009,0.0001,129.76,129.74,7.7077]
[1744549894209,0.0001,129.76,129.75,0.28432314]
[1744549894919,0.0001,129.76,129.75,7.99142314]
[1744549897618,0.0001,129.76,129.75,108.38323357]
[1744549898118,0.0001,129.76,129.75,108.241072]
[1744549898319,0.0001,129.76,129.75,89.59142314]
[1744549898723,0.0001,129.76,129.75,89.3071]
[1744549901518,0.0001,129.76,129.74,7.7074]
[1744549905642,1.5017,129.76,129.7,7.7101]
[1744549906508,1.5017,129.76,129.71,18.933972]
[1744549906715,0.0001,129.76,129.71,18.933972]
[1744549907927,0.0001,129.76,129.72,26.9811]
[1744549908726,0.0001,129.76,129.72,7.7089]
[1744549909332,0.0001,129.76,129.72,26.9811]
[1744549910041,0.0001,129.76,129.71,7.7095]
[1744549911629,0.0001,129.76,129.71,26.9832]
[1744549912542,0.0001,129.76,129.71,7.7095]
[1744549914144,8.88826157,129.75,129.69,7.7106]
[1744549915317,8.88826157,129.75,129.68,27.0181]
[1744549915318,7.7077,129.74,129.68,27.0181]
[1744549915946,8.7461,129.75,129.68,27.0181]
[1744549916625,8.7461,129.75,129.69,18.933972]
[1744549917751,8.7461,129.75,129.7,26.9853]
[1744549918040,8.7461,129.75,129.7,7.7101]
[1744549920328,8.7461,129.75,129.7,26.9853]
[1744549920639,0.0001,129.76,129.7,26.9853]
[1744549920944,0.0001,129.76,129.71,0.28432314]
[1744549921136,0.0001,129.76,129.71,18.933972]
[1744549921519,0.0001,129.76,129.71,0.28432314]
[1744549921823,0.0001,129.76,129.71,18.933972]
[1744549922040,0.0001,129.76,129.71,100.533972]
[1744549923553,0.0001,129.76,129.72,26.9811]
[1744549927651,0.0001,129.76,129.73,0.28432314]
[1744549927861,0.0001,129.76,129.75,26.28432314]
[1744549928152,0.0001,129.76,129.75,44.933972]
[1744549928354,0.0001,129.76,129.75,45.07613357]
[1744549929156,0.0001,129.76,129.75,126.67613357]
[1744549929731,0.0001,129.76,129.75,134.38323357]
[1744549929930,0.0001,129.76,129.75,52.641072]
[1744549930432,0.0001,129.76,129.75,52.78323357]
[1744549930835,0.0001,129.76,129.75,52.641072]
[1744549932139,0.0001,129.76,129.75,33.99142314]
[1744549932551,0.0001,129.76,129.75,52.641072]
[1744549932740,0.0001,129.76,129.75,52.78323357]
[1744549934238,0.0001,129.76,129.75,134.38323357]
[1744549939374,0.0001,129.76,129.75,138.32389374]
[1744549942163,0.0001,129.76,129.75,134.09891043]
[1744549942559,0.0001,129.76,129.75,134.38323357]
[1744549942861,0.0001,129.76,129.75,134.09891043]
[1744549943468,0.0001,129.76,129.75,134.38323357]
[1744549944165,0.0001,129.76,129.75,135.38323357]
[1744549944763,0.063,129.82,129.8,0.28432314]
[1744549945065,0.063,129.82,129.8,26.28432314]
[1744549945768,0.063,129.82,129.81,7.98782314]
[1744549946863,0.063,129.85,129.82,18.933972]
[1744549947063,0.063,129.85,129.82,100.533872]
[1744549947661,0.063,129.85,129.84,26.0]
[1744549947865,0.063,129.85,129.84,33.98602314]
[1744549950470,0.063,129.85,129.84,33.7017]
[1744549952868,0.063,129.85,129.84,7.7017]
[1744549953067,8.1478,129.85,129.83,7.7022]
[1744549953771,8.1478,129.85,129.8,7.7035]
[1744549954974,15.8491,129.85,129.78,7.7053]
[1744549956477,7.84406157,129.84,129.78,7.7053]
[1744549959175,7.84406157,129.84,129.77,19.2646]
[1744549960976,8.1478,129.85,129.77,19.2646]
[1744549961681,8.1478,129.85,129.78,18.933972]
[1744549963288,8.1478,129.85,129.79,26.9665]
[1744549965303,8.1478,129.85,129.81,26.9624]
[1744549965489,1.6689,129.85,129.82,0.28432314]
[1744549967485,1.6689,129.85,129.83,7.7023]
[1744549968488,0.063,129.85,129.83,7.7023]
[1744549971284,0.063,129.85,129.84,7.98602314]
[1744549972816,0.063,129.89,129.86,0.28432314]
[1744549973489,0.063,129.89,129.87,7.7]
[1744549978477,0.063,129.89,129.88,26.0]
[1744549979286,0.063,129.89,129.87,7.7]
[1744549979799,0.063,129.89,129.86,19.2508]
[1744549980099,0.063,129.89,129.85,7.7011]
[1744549980981,18.85481043,129.89,129.83,7.7023]
[1744549981176,0.063,129.89,129.83,7.7023]
[1744549981997,18.85481043,129.89,129.83,7.7023]
[1744549982499,0.20516157,129.89,129.83,7.7023]
[1744549983100,0.20516157,129.89,129.83,26.9582]
[1744549983898,0.20516157,129.89,129.81,26.9624]
[1744549985201,0.063,129.89,129.82,0.28432314]
[1744549985585,0.063,129.89,129.82,100.533872]
[1744549985788,0.20516157,129.89,129.82,81.5999]
[1744549986104,0.063,129.89,129.83,26.9582]
[1744549986779,0.063,129.89,129.84,0.28432314]
[1744549986984,0.063,129.89,129.86,26.0]
[1744549987384,0.063,129.89,129.83,108.5581]
[1744549987698,0.063,129.89,129.86,26.0]
[1744549988107,0.063,129.89,129.87,7.7]
[1744549999288,1.5786,129.88,129.85,7.7011]
[1744550001109,1.5786,129.88,129.82,26.96]
[1744550003516,1.5786,129.88,129.83,0.28432314]
[1744550003886,1.5786,129.88,129.85,26.0]
[1744550006213,1.5786,129.88,129.86,7.7006]
[1744550007410,1.5786,129.88,129.84,26.9556]
[1744550015919,1.5786,129.88,129.84,7.7017]
[1744550017532,1.5786,129.88,129.8,19.26]
[1744550017533,1.6627,129.86,129.8,19.26]
[1744550019131,9.3634,129.86,129.8,19.26]
[1744550019337,8.7227,129.86,129.79,7.7677]
[1744550019508,8.7227,129.86,129.79,27.0295]
[1744550019707,16.4233,129.86,129.79,27.0295]
[1744550020013,18.79181043,129.85,129.79,7.7677]
[1744550020213,0.14216157,129.83,129.79,7.7677]
[1744550020734,0.14216157,129.83,129.79,0.063]
[1744550022731,1.5046,129.84,129.79,0.063]
[1744550023724,1.5046,129.84,129.81,26.0]
[1744550024020,7.06,129.86,129.81,26.0]
[1744550024229,7.06,129.86,129.82,26.0]
[1744550024813,7.06,129.86,129.83,7.7023]
[1744550025010,18.79181043,129.85,129.79,0.063]
[1744550025218,6.4321,129.82,129.79,0.063]
[1744550025442,1.66256157,129.81,129.79,0.063]
[1744550025749,8.72256157,129.81,129.79,0.063]
[1744550026606,26.0,129.77,129.76,0.063]
[1744550026824,54.30243357,129.77,129.76,0.063]
[1744550027024,60.73453357,129.77,129.76,0.063]
[1744550027521,52.74431043,129.77,129.76,0.063]
[1744550027708,34.09466157,129.77,129.76,0.063]
[1744550028329,41.80056157,129.77,129.76,0.063]
[1744550029906,18.64964886,129.76,129.75,0.063]
[1744550030236,26.13613357,129.76,129.75,0.063]
[1744550030533,0.14216157,129.75,129.74,0.063]
[1744550030734,0.42648471,129.75,129.74,0.063]
[1744550031215,0.14216157,129.75,129.74,0.063]
[1744550031533,0.42648471,129.75,129.73,0.03]
[1744550031718,26.42648471,129.74,129.73,0.03]
[1744550032112,35.67518471,129.74,129.73,0.03]
[1744550033532,35.39086157,129.74,129.73,0.03]
[1744550033737,1.68316157,129.74,129.73,0.03]
[1744550034031,9.39086157,129.74,129.73,0.03]
[1744550034247,1.68316157,129.74,129.73,0.03]
[1744550039440,1.541,129.74,129.73,0.03]
[1744550039641,1.67026157,129.78,129.73,0.03]
[1744550040031,1.5281,129.78,129.73,0.03]
[1744550040358,7.08,129.79,129.73,0.03]
[1744550041040,18.79181043,129.78,129.73,0.03]
[1744550041745,0.14216157,129.78,129.73,7.7383]
[1744550044651,7.08,129.79,129.73,7.7383]
[1744550045325,7.08,129.79,129.73,27.009]
[1744550045523,7.08,129.79,129.73,35.1075]
[1744550046142,7.08,129.79,129.74,0.28432314]
[1744550046332,7.08,129.83,129.77,26.0]
[1744550047429,7.08,129.83,129.78,26.9686]
[1744550048841,0.14216157,129.86,129.78,26.9686]
[1744550051450,7.84306157,129.86,129.78,26.9686]
[1744550053325,0.14216157,129.86,129.78,26.9686]
[1744550053859,7.08,129.87,129.79,8.2382]
[1744550054059,7.08,129.87,129.8,0.28432314]
[1744550054352,7.08,129.87,129.82,26.0]
[1744550054729,0.14216157,129.86,129.79,89.8381]
[1744550054949,0.14216157,129.86,129.8,7.7041]
[1744550057951,7.84276157,129.86,129.8,7.7041]
[1744550058255,0.14216157,129.84,129.8,7.7041]
[1744550059455,0.14216157,129.84,129.78,19.2633]
[1744550059953,0.14216157,129.85,129.78,19.2633]
[1744550062557,7.84346157,129.85,129.78,19.2633]
[1744550063355,0.14216157,129.85,129.78,19.2633]
[1744550068557,7.84336157,129.85,129.78,19.2633]
[1744550069058,0.14216157,129.85,129.78,19.2633]
[1744550070856,7.84336157,129.85,129.78,19.2633]
[1744550071055,0.14216157,129.85,129.78,19.2633]
[1744550071361,7.84336157,129.85,129.78,19.2633]
[1744550073368,7.84336157,129.85,129.77,7.7059]
[1744550073541,0.14216157,129.83,129.77,7.7059]
[1744550074663,7.84466157,129.83,129.76,26.9726]
[1744550074869,0.14216157,129.83,129.76,26.9726]
[1744550075070,7.36216157,129.83,129.76,26.9726]
[1744550075867,15.06456157,129.83,129.76,26.9726]
[1744550080275,7.36216157,129.87,129.8,26.0]
[1744550081371,15.06236157,129.87,129.81,7.7035]
[1744550083867,7.22,129.87,129.81,26.9624]
[1744550084674,7.22,129.87,129.81,28.5668]
[1744550085672,14.9201,129.87,129.81,9.3079]
[1744550085877,14.9201,129.87,129.81,7.7035]
[1744550090268,7.22,129.87,129.81,7.7035]
[1744550094690,18.79181043,129.86,129.8,33.7038]
[1744550094892,18.79181043,129.86,129.8,7.7038]
[1744550096395,18.79181043,129.86,129.78,1.6044]
[1744550096396,0.14216157,129.84,129.79,7.7047]
[1744550098497,7.22,129.87,129.79,26.9665]
[1744550098692,7.22,129.87,129.81,0.28432314]
[1744550099572,7.22,129.87,129.8,6.0267]
[1744550099989,7.22,129.87,129.79,108.5664]
[1744550100171,14.92,129.87,129.79,108.5664]
[1744550100376,18.79181043,129.86,129.79,7.7047]
[1744550100599,0.14216157,129.84,129.78,7.7053]
[1744550101476,18.79181043,129.84,129.78,7.7053]
[1744550101676,1.6095,129.83,129.78,7.7053]
[1744550104100,9.3119,129.83,129.77,7.7059]
[1744550105095,1.6095,129.83,129.77,26.9707]
[1744550105394,9.2462,129.86,129.78,0.28432314]
[1744550105697,1.5454,129.86,129.79,6.4117]
[1744550106093,26.49351043,129.85,129.79,7.7047]
[1744550106476,26.49351043,129.85,129.78,89.3049]
[1744550107383,0.28432314,129.84,129.76,7.7065]
[1744550108096,26.49351043,129.85,129.76,7.7065]
[1744550108302,1.5454,129.86,129.79,26.0]
[1744550108993,18.79181043,129.85,129.76,100.8662]
[1744550109302,0.14216157,129.85,129.77,0.28432314]
[1744550109697,0.14216157,129.85,129.76,100.8662]
[1744550109698,18.79181043,129.85,129.76,100.8662]
[1744550109878,0.28432314,129.84,129.75,21.1657]
[1744550110279,0.14216157,129.82,129.75,14.0857]
[1744550110494,0.14216157,129.82,129.75,33.3535]
[1744550110674,1.5454,129.86,129.79,26.0]
[1744550112097,1.5454,129.86,129.8,0.28432314]
[1744550112315,13.6691,129.87,129.8,0.28432314]
[1744550112316,0.063,129.89,129.82,0.28432314]
[1744550114104,0.063,129.89,129.82,18.933972]
[1744550114304,0.063,129.89,129.83,26.9582]
[1744550115585,18.85481043,129.89,129.83,7.7023]
[1744550115789,18.85481043,129.89,129.79,0.28432314]
[1744550115790,0.14216157,129.86,129.79,100.8616]
[1744550115994,1.66296157,129.84,129.79,7.7047]
[1744550116185,7.7023,129.83,129.78,11.64913097]
[1744550116385,9.36496157,129.84,129.78,7.7053]
[1744550116606,1.5208,129.84,129.78,7.7053]
[1744550117997,1.5208,129.84,129.78,26.9686]
[1744550119289,6.6636,129.88,129.81,26.0]
[1744550119490,1.5935,129.89,129.82,0.28432314]
[1744550120503,1.5935,129.89,129.83,26.9582]
[1744550120680,0.063,129.89,129.84,0.28432314]
[1744550122786,0.063,129.89,129.85,7.7011]
[1744550123510,0.063,129.89,129.85,26.954]
[1744550124120,0.063,129.89,129.86,0.28432314]
[1744550124301,0.063,129.89,129.86,100.533872]
[1744550124697,0.063,129.89,129.87,7.7]
[1744550124903,0.063,129.89,129.88,0.28432314]
[1744550127116,0.063,129.89,129.88,7.98372314]
[1744550129927,47.18903989,129.99,129.93,0.14216157]
[1744550130097,47.18903989,129.99,129.96,18.933972]
[1744550130295,47.18903989,129.99,129.96,26.0]
[1744550131311,47.18903989,129.99,129.96,33.6946]
[1744550131698,47.18903989,129.99,129.96,52.628572]
[1744550132100,9.97e-06,129.97,129.96,52.77073357]
[1744550133411,9.97e-06,129.97,129.96,33.97892314]
[1744550134547,9.97e-06,129.97,129.96,52.77073357]
[1744550134718,47.18903989,129.99,129.96,33.97892314]
[1744550136654,47.18903989,129.99,129.96,33.6946]
[1744550137428,0.063,129.98,129.96,33.6946]
[1744550138354,0.063,129.99,129.97,18.933972]
[1744550140330,0.063,129.99,129.98,7.97772314]
[1744550143263,0.0001,129.99,129.98,108.227272]
[1744550145758,0.0001,129.99,129.98,108.36943357]
[1744550148256,0.0001,129.99,129.98,89.2933]
[1744550149047,0.0001,129.99,129.98,89.57762314]
[1744550149254,0.0001,129.99,129.98,89.2933]
[1744550152739,0.0001,129.99,129.98,26.0]
[1744550154165,0.0001,129.99,129.98,33.6934]
[1744550154567,0.0001,129.99,129.98,33.97772314]
[1744550154870,0.0001,129.99,129.98,33.6934]
[1744550155363,9.14853906,130.05,129.98,33.6934]
[1744550155564,9.14853906,130.05,129.98,52.9271]
[1744550155748,1.45883906,130.05,129.99,0.28432314]
[1744550156566,1.45883906,130.05,130.0,7.6923]
[1744550162672,1.45883906,130.05,130.0,26.923]
[1744550163045,0.14216157,130.04,129.99,7.6926]
[1744550163394,0.14216157,130.04,129.95,7.6952]
[1744550163395,0.28432314,130.03,129.95,7.6952]
[1744550163538,1.80236157,130.01,129.95,7.6952]
[1744550163942,0.14216157,129.99,129.93,7.6964]
[1744550164752,7.83516157,129.99,129.92,19.3053]
[1744550165059,7.83516157,129.99,129.92,0.063]
[1744550165260,0.14216157,129.97,129.92,0.063]
[1744550165571,7.36216157,129.97,129.92,0.063]
[1744550166372,0.14216157,129.95,129.92,0.063]
[1744550166544,6.57626157,129.93,129.92,0.063]
[1744550167352,14.27266157,129.93,129.92,0.063]
[1744550168167,6.57626157,129.93,129.92,0.063]
[1744550168351,6.4341,129.93,129.92,0.063]
[1744550168750,14.27266157,129.93,129.92,0.063]
[1744550168959,6.57626157,129.93,129.92,0.063]
[1744550169159,6.4341,129.93,129.92,0.063]
[1744550169362,1.6602,129.94,129.92,0.063]
[1744550169564,6.6313,129.96,129.92,0.063]
[1744550170174,8.86486157,129.97,129.92,0.063]
[1744550170842,8.86486157,129.97,129.92,7.76]
[1744550171448,7.22,129.97,129.92,7.76]
[1744550171864,7.22,129.97,129.92,27.0026]
[1744550175078,7.22,129.97,129.92,7.76]
[1744550176374,14.9142,129.97,129.92,7.76]
[1744550177051,7.22,129.97,129.92,7.76]
[1744550177675,14.914,129.97,129.92,7.76]
[1744550178174,7.22,129.97,129.92,7.76]
[1744550178378,7.22,129.97,129.92,89.3599]
[1744550178577,27.84414886,130.01,129.92,89.3599]
[1744550178578,1.6413,130.04,129.96,26.0]
[1744550179162,1.6413,130.04,129.97,7.694]
[1744550179562,1.6413,130.04,129.97,26.9292]
[1744550180378,9.3313,130.04,129.97,26.9292]
[1744550180593,0.14216157,130.03,129.97,7.694]
[1744550181469,7.83286157,130.03,129.97,7.694]
[1744550181669,0.14216157,130.03,129.97,7.694]
[1744550182068,7.83266157,130.03,129.97,7.694]
[1744550182476,7.83266157,130.03,129.93,7.6964]
[1744550182477,18.933972,130.02,129.93,7.6964]
[1744550182679,0.14216157,130.0,129.93,7.6964]
[1744550183000,7.22,130.01,129.93,26.9375]
[1744550183192,7.22,130.01,129.94,0.28432314]
[1744550183382,7.22,130.01,129.95,26.9333]
[1744550186792,7.22,130.01,129.96,0.28432314]
[1744550186969,25.302072,130.06,129.98,18.933972]
[1744550186970,7.22,130.06,129.98,18.933972]
[1744550187796,7.22,130.06,129.99,26.925]
[1744550188295,7.22,130.06,129.99,28.4871]
[1744550188594,7.36216157,130.07,129.99,28.4871]
[1744550188893,7.22,130.07,130.0,18.933972]
[1744550189871,7.22,130.07,130.01,26.9209]
[1744550190072,7.22,130.07,130.02,0.28432314]
[1744550191099,7.22,130.07,130.02,18.933972]
[1744550191692,0.03,130.1,130.02,18.933972]
[1744550191989,7.25,130.1,130.03,7.6905]
[1744550192195,0.14216157,130.09,130.03,7.6905]
[1744550192576,18.79181043,130.09,130.03,7.6905]
[1744550193487,18.79181043,130.09,130.02,81.5999]
[1744550193988,0.14216157,130.07,130.02,89.2907]
[1744550194177,0.14216157,130.07,130.02,7.6908]
[1744550194970,7.83066157,130.07,130.0,26.9227]
[1744550195173,7.83066157,130.07,130.0,7.6923]
[1744550195174,0.14216157,130.05,130.0,7.6923]
[1744550195390,0.14216157,130.03,129.97,6.178]
[1744550196380,7.83276157,130.03,129.98,7.6934]
[1744550196690,0.14216157,130.03,129.98,7.6934]
[1744550196897,14.9101,130.04,129.98,7.6934]
[1744550196898,7.22,130.04,129.98,7.6934]
[1744550199494,7.22,130.04,129.98,26.9271]
[1744550201483,0.14216157,130.03,129.98,7.6934]
[1744550202403,0.14216157,130.03,129.96,19.2365]
[1744550203409,7.83286157,130.03,129.96,19.2365]
[1744550203700,7.22,130.04,129.96,19.2365]
[1744550204497,14.9099,130.04,129.96,19.2365]
[1744550205604,14.9099,130.04,129.96,26.9311]
[1744550206785,1.5184,130.02,129.96,26.9311]
[1744550206988,0.14216157,130.01,129.96,7.6946]
[1744550207302,18.79181043,130.01,129.95,7.695]
[1744550207508,19.07613357,129.99,129.94,0.063]
[1744550209006,0.14216157,129.96,129.94,0.063]
[1744550209409,53.95203357,129.95,129.94,0.063]
[1744550210714,53.95203357,129.95,129.92,0.063]
[1744550210715,0.28432314,129.93,129.92,0.063]
[1744550210913,8.12288471,129.93,129.92,0.063]
[1744550211094,0.14216157,129.93,129.92,0.063]
[1744550212114,26.77253357,129.93,129.92,0.063]
[1744550213594,26.48821043,129.93,129.92,0.063]
[1744550216522,26.77253357,129.93,129.92,0.063]
[1744550219224,26.48821043,129.93,129.92,0.063]
[1744550220710,0.14216157,129.93,129.92,0.063]
[1744550220919,0.14216157,129.94,129.92,0.063]
[1744550221102,8.8759,129.95,129.92,0.063]
[1744550221103,7.22,129.95,129.92,0.063]
[1744550221720,1.5887,129.99,129.92,0.063]
[1744550221909,7.22,129.98,129.92,0.063]
[1744550222930,7.22,129.98,129.92,27.0026]
[1744550223236,18.79181043,129.97,129.92,0.063]
[1744550224204,0.14216157,129.97,129.92,0.063]
[1744550224399,26.48621043,129.97,129.92,0.063]
[1744550225824,0.14216157,129.93,129.92,0.063]
[1744550226032,26.29613357,129.93,129.92,0.063]
[1744550228135,33.99253357,129.93,129.92,0.063]
[1744550228517,46.07613357,129.91,129.9,0.063]
[1744550228818,45.07613357,129.91,129.9,0.063]
[1744550230032,52.77373357,129.91,129.9,0.063]
[1744550230330,53.77373357,129.91,129.9,0.0001]
[1744550231930,51.27391043,129.88,129.87,0.063]
[1744550232225,0.28432314,129.86,129.85,0.063]
[1744550232433,19.07613357,129.86,129.85,0.063]
[1744550232604,45.07613357,129.86,129.85,0.063]
[1744550233015,44.79181043,129.86,129.85,0.063]
[1744550234407,52.49241043,129.86,129.85,0.063]
[1744550236831,52.77673357,129.86,129.85,0.063]
[1744550238196,59.99673357,129.86,129.85,0.063]
[1744550242517,59.99673357,129.86,129.83,0.063]
[1744550242518,46.445072,129.84,129.83,0.063]
[1744550242731,46.445072,129.84,129.79,0.063]
[1744550242732,0.42648471,129.8,129.79,0.063]
[1744550242920,52.29613357,129.8,129.79,0.063]
[1744550243114,26.29613357,129.8,129.79,0.063]
[1744550243350,34.00023357,129.8,129.79,0.063]
[1744550243532,38.93581487,129.8,129.79,0.063]
[1744550243846,37.93581487,129.8,129.79,0.063]
[1744550244518,34.00023357,129.8,129.79,0.063]
[1744550245448,34.00023357,129.8,129.79,0.0001]
[1744550245638,118.87804344,129.8,129.79,0.0001]
[1744550245841,125.97154344,129.8,129.79,0.0001]
[1744550247164,124.97154344,129.8,129.79,0.0001]
[1744550247339,115.00023357,129.8,129.79,0.0001]
[1744550247958,45.07613357,129.76,129.73,0.03]
[1744550248144,0.42648471,129.74,129.73,0.03]
[1744550249956,8.13418471,129.74,129.73,0.03]
[1744550250762,26.78383357,129.74,129.73,0.03]
[1744550255342,0.14216157,129.74,129.73,0.03]
[1744550255550,26.78383357,129.74,129.73,0.03]
[1744550257452,26.49951043,129.74,129.73,0.03]
[1744550257766,26.78383357,129.74,129.73,0.03]
[1744550259357,0.14216157,129.74,129.73,0.03]
[1744550259578,7.36216157,129.74,129.73,0.03]
[1744550260032,7.22,129.74,129.73,0.03]
[1744550262270,7.36216157,129.74,129.73,0.03]
[1744550262457,15.06986157,129.74,129.73,0.03]
[1744550262769,26.01181043,129.74,129.73,0.03]
[1744550263075,7.22,129.74,129.73,0.03]
[1744550266357,7.36216157,129.74,129.73,0.03]
[1744550266776,15.06986157,129.74,129.73,0.03]
[1744550267570,26.01181043,129.74,129.73,0.03]
[1744550268171,18.79181043,129.74,129.73,0.03]
[1744550268356,26.01181043,129.74,129.73,0.03]
[1744550269572,33.71951043,129.74,129.73,0.03]
[1744550270580,26.01181043,129.74,129.73,0.03]
[1744550272472,33.71951043,129.74,129.73,0.03]
[1744550273863,34.00383357,129.74,129.73,0.03]
[1744550274676,26.01181043,129.74,129.73,0.03]
[1744550276786,33.71951043,129.74,129.73,0.03]
[1744550277484,34.00383357,129.74,129.73,0.03]
[1744550277783,18.79181043,129.69,129.68,0.03]
[1744550277973,25.97181043,129.69,129.68,0.03]
[1744550278286,33.68241043,129.69,129.68,0.03]
[1744550278977,7.32216157,129.69,129.68,0.03]
[1744550280468,15.03276157,129.69,129.68,0.03]
[1744550281083,15.31708471,129.69,129.68,0.03]
[1744550282082,15.03276157,129.69,129.68,0.03]
[1744550282386,33.68241043,129.69,129.68,0.03]
[1744550282564,33.96673357,129.69,129.68,0.03]
[1744550283769,33.96673357,129.69,129.68,0.0001]
[1744550283978,35.59843357,129.69,129.68,0.0001]
[1744550285270,0.14216157,129.67,129.66,0.0001]
[1744550287698,7.18,129.69,129.66,0.0001]
[1744550288078,7.2,129.73,129.66,0.0001]
[1744550289378,7.2,129.73,129.66,26.9936]
[1744550292175,0.14216157,129.72,129.66,26.9936]
[1744550292398,0.14216157,129.72,129.66,7.7125]
[1744550293901,7.85106157,129.72,129.66,7.7125]